Workbook

Sheet ORÇAMENTO
A1: <---- NUMERAR SERVIÇOS PARA CPU | C1: Ministério do Desenvolvimento Regional
C2: Companhia de Desenvolvimento dos Vales do São Francisco e do Parnaíba
C3: 1ª Superintendência Regional
B5: OBRA: | C5: PAVIMENTAÇÃO ASFÁLTICA EM CBUQ - ITEM 2: MORRO DA CANELA, MORRO DO PAREDÃO, MORRO DO BAGUAÇÚ, MORRO DO RETIRO E AV. LÁZARO LONDE (MATUTINA / MG) -
B6: DATA: | C6: SETEMBRO / 2023 | G6: BDI Serviços: | I6: ='BDI SERV'!D31/100 -> 0.2149
B7: PRAZO DE EXECUÇÃO: 240 DIAS | G7: BDI Serviços: | I7: ='BDI FORN'!D31/100 -> 0.15
B8: ITEM | C8: DISCRIMINAÇÃO | D8: REFER. | E8: UNID. | F8: QUANT. | G8: P. UNITÁRIO | H8: P.UNIT.C/ BDI | I8: P. TOTAL
A9: A | B9: 1 | C9: SERVIÇOS PRELIMINARES | I9: =SUM(I10:I14) -> 371055.42
A10: 1 | B10: 1.1 | C10: MOBILIZAÇÃO E DESMOBILIZAÇÃO (INCLUSIVE ENTRE TRECHOS) | D10: CPU.1 | E10: GL | F10: 1 | G10: =VLOOKUP(A10,CPU!$A$1:$N$4674,9) -> 25031.26 | H10: =VLOOKUP(A10,CPU!$A$1:$N$4674,10) -> 30410.48 | I10: =ROUND(F10*H10,2) -> 30410.48
A11: 2 | B11: 1.2 | C11: ADMINISTRAÇÃO LOCAL | D11: CPU.2 | E11: GL | F11: 1 | G11: =VLOOKUP(A11,CPU!$A$1:$N$4674,9) -> 225118.96 | H11: =VLOOKUP(A11,CPU!$A$1:$N$4674,10) -> 273497.02 | I11: =ROUND(F11*H11,2) -> 273497.02
A12: 3 | B12: 1.3 | C12: CANTEIRO DE OBRAS (PARA TODAS AS FRENTES DE SERVIÇO) | D12: CPU.3 | E12: GL | F12: 1 | G12: =VLOOKUP(A12,CPU!$A$1:$N$4674,9) -> 36189 | H12: =VLOOKUP(A12,CPU!$A$1:$N$4674,10) -> 43966.02 | I12: =ROUND(F12*H12,2) -> 43966.02
A13: 4 | B13: 1.4 | C13: PLACA DE OBRA EM CHAPA DE AÇO GALVANIZADO | D13: 103689 | E13: M2 | F13: 30 | G13: =VLOOKUP(A13,CPU!$A$1:$N$4674,9) -> 339.72 | H13: =VLOOKUP(A13,CPU!$A$1:$N$4674,10) -> 412.73 | I13: =ROUND(F13*H13,2) -> 12381.9
A14: 5 | B14: 1.5 | C14: SERVIÇOS TOPOGRÁFICOS PARA PAVIMENTAÇÃO, INCLUSIVE NOTA DE SERVIÇO, ACOMPANHAMENTO E GREIDE | D14: 78472 | E14: M2 | F14: 27000 | G14: =VLOOKUP(A14,CPU!$A$1:$N$4674,9) -> 0.33 | H14: =VLOOKUP(A14,CPU!$A$1:$N$4674,10) -> 0.4 | I14: =ROUND(F14*H14,2) -> 10800
A15: B | B15: 2 | C15: TERRAPLANAGEM E PAVIMENTAÇÃO | I15: =SUM(I16:I22) -> 454029.7
A16: 6 | B16: 2.1 | C16: ESCAVAÇÃO HORIZONTAL EM SOLO DE 1A CATEGORIA | D16: 101116 | E16: M3 | F16: 8100 | G16: =VLOOKUP(A16,CPU!$A$1:$N$4674,9) -> 2.03 | H16: =VLOOKUP(A16,CPU!$A$1:$N$4674,10) -> 2.47 | I16: =ROUND(F16*H16,2) -> 20007
A17: 7 | B17: 2.2 | C17: CARGA, MANOBRA E DESCARGA DE SOLOS E MATERIAIS GRANULARES EM CAMINHÃO BASCULANTE | D17: 100976 | E17: M3 | F17: 8100 | G17: =VLOOKUP(A17,CPU!$A$1:$N$4674,9) -> 4.84 | H17: =VLOOKUP(A17,CPU!$A$1:$N$4674,10) -> 5.88 | I17: 47628
A18: 8 | B18: 2.3 | C18: REGULARIZAÇÃO E COMPACTAÇÃO DO SUBLEITO | D18: 100576 | E18: M2 | F18: 27000 | G18: =VLOOKUP(A18,CPU!$A$1:$N$4674,9) -> 2.53 | H18: =VLOOKUP(A18,CPU!$A$1:$N$4674,10) -> 3.07 | I18: 82890
A19: 9 | B19: 2.4 | C19: EXECUÇÃO E COMPACTAÇÃO DE BASE E OU SUB BASE PARA PAVIMENTAÇÃO DE SOLOS DE COMPORTAMENTO LATERÍTICO (ARENOSO) - EXCLUSIVE SOLO, ESCAVAÇÃO, CARGA E TRANSPORTE | D19: 96388 | E19: M3 | F19: 4100 | G19: =VLOOKUP(A19,CPU!$A$1:$N$4674,9) -> 11.61 | H19: =VLOOKUP(A19,CPU!$A$1:$N$4674,10) -> 14.1 | I19: 57810
A20: 10 | B20: 2.5 | C20: IMPRIMAÇÃO COM EMULSÃO ASFÁLTICA (EAI) | D20: 96401 | E20: M2 | F20: 27000 | G20: =VLOOKUP(A20,CPU!$A$1:$N$4674,9) -> 1.12 | H20: =VLOOKUP(A20,CPU!$A$1:$N$4674,10) -> 1.36 | I20: 36720
A21: 11 | B21: 2.6 | C21: PINTURA DE LIGAÇÃO COM EMULSÃO ASFÁLTICA RR-1C | D21: 96402 | E21: M2 | F21: 24500 | G21: =VLOOKUP(A21,CPU!$A$1:$N$4674,9) -> 0.93 | H21: =VLOOKUP(A21,CPU!$A$1:$N$4674,10) -> 1.13 | I21: 27685
A22: 12 | B22: 2.7 | C22: EXECUÇÃO DE PAVIMENTO COM APLICAÇÃO DE CONCRETO ASFÁLTICO USINADO A QUENTE (CBUQ), CAMADA DE ROLAMENTO - EXCLUSIVE TRANSPORTE | D22: 95995 | E22: M3 | F22: 1230 | G22: =VLOOKUP(A22,CPU!$A$1:$N$4674,9) -> 121.32 | H22: =VLOOKUP(A22,CPU!$A$1:$N$4674,10) -> 147.39 | I22: 181289.7
A23: C | B23: 3 | C23: TRANSPORTE DE MATERIAIS | I23: =SUM(I24:I25) -> 95596
A24: 13 | B24: 3.1 | C24: TRANSPORTE COM CAMINHÃO BASCULANTE, EM VIA URBANA PAVIMENTADA | D24: 95427 | E24: M3XKM | F24: 114999.9981 | G24: =VLOOKUP(A24,CPU!$A$1:$N$4674,9) -> 0.65 | H24: =VLOOKUP(A24,CPU!$A$1:$N$4674,10) -> 0.79 | I24: =ROUND(F24*H24,2) -> 90850
A25: 14 | B25: 3.2 | C25: TRANSPORTE COM CAMINHÃO CARROCERIA 9T, EM VIA URBANA PAVIMENTADA | D25: 100947 | E25: TXKM | F25: 4200.00275 | G25: =VLOOKUP(A25,CPU!$A$1:$N$4674,9) -> 0.93 | H25: =VLOOKUP(A25,CPU!$A$1:$N$4674,10) -> 1.13 | I25: =ROUND(F25*H25,2) -> 4746
A26: D | B26: 4 | C26: TRANSPORTE DE MATERIAL ASFÁLTICO (BDI DIFERENCIADO) | I26: =SUM(I27:I28) -> 275730
A27: 15 | B27: 4.1 | C27: TRANSPORTE DE MASSA ASFÁLTICA COM CAMINHÃO BASCULANTE, EM VIA URBANA PAVIMENTADA (BDI DIFERENCIADO) | D27: 95430 | E27: TXKM | F27: 570000 | G27: =VLOOKUP(A27,CPU!$A$1:$N$4674,9) -> 0.41 | H27: =VLOOKUP(A27,CPU!$A$1:$N$4674,10) -> 0.47 | I27: =ROUND(F27*H27,2) -> 267900
A28: 16 | B28: 4.2 | C28: TRANSPORTE COM CAMINHÃO TANQUE DE TRANSPORTE DE MATERIAL ASFÁLTICO DE 30000 L, EM VIA URBANA PAVIMENTADA (BDI DIFERENCIADO) | D28: 102331 | E28: TXKM | F28: 14500 | G28: =VLOOKUP(A28,CPU!$A$1:$N$4674,9) -> 0.47 | H28: =VLOOKUP(A28,CPU!$A$1:$N$4674,10) -> 0.54 | I28: =ROUND(F28*H28,2) -> 7830
A29: E | B29: 5 | C29: DRENAGEM E OBRAS COMPLEMENTARES | I29: =SUM(I30:I34) -> 551240.94
A30: 17 | B30: 5.1 | C30: GUIA (MEIO-FIO) E SARJETA CONJUGADOS DE CONCRETO, MOLDADA IN LOCO EM M CR 57,38 TRECHO RETO COM EXTRUSORA, 45 CM BASE (15 CM BASE DA GUIA + 30 CM BASE DA SARJETA) X 22 CM ALTURA | D30: 94267 | E30: M | F30: 6250 | G30: =VLOOKUP(A30,CPU!$A$1:$N$4674,9) -> 57.37 | H30: =VLOOKUP(A30,CPU!$A$1:$N$4674,10) -> 69.7 | I30: =ROUND(F30*H30,2) -> 435625
A31: 18 | B31: 5.2 | C31: BACIA DE DISSIPAÇÃO, TIPO BACIA EM PEDRA DE MÃO FIXADA COM CONCRETO (DEB 01, 02), COM PREPARO MANUAL, FCK = 20 MPA, LANÇADO MANUALMENTE, INCLUINDO MATERIAIS E FÔRMAS | D31: 103930 | E31: M3 | F31: 10 | G31: =VLOOKUP(A31,CPU!$A$1:$N$4674,9) -> 772.54 | H31: =VLOOKUP(A31,CPU!$A$1:$N$4674,10) -> 938.56 | I31: 9385.6
A32: 19 | B32: 5.3 | C32: FORNECIMENTO E INSTALAÇÃO DE PLACA DE SINALIZAÇÃO VIÁRIA - REGULAMENTAÇÃO CIRCULAR | D32: CPU.4 | E32: UN. | F32: 20 | G32: =VLOOKUP(A32,CPU!$A$1:$N$4674,9) -> 422.66 | H32: =VLOOKUP(A32,CPU!$A$1:$N$4674,10) -> 513.49 | I32: 10269.8
A33: 20 | B33: 5.4 | C33: FORNECIMENTO E INSTALAÇÃO DE PLACA DE SINALIZAÇÃO VIÁRIA - REGULAMENTAÇÃO (FIM DO TRECHO PAVIMENTADO) | D33: CPU.5 | E33: UN. | F33: 9 | G33: =VLOOKUP(A33,CPU!$A$1:$N$4674,9) -> 1132.65 | H33: =VLOOKUP(A33,CPU!$A$1:$N$4674,10) -> 1376.06 | I33: 12384.54
A34: 21 | B34: 5.5 | C34: PINTURA DE EIXO VIÁRIO SOBRE ASFALTO COM TINTA RETRORREFLETIVA A BASE DE RESINA ACRÍLICA COM MICROESFERAS DE VIDRO, APLICAÇÃO MECÂNICA COM DEMARCADORA AUTOPROPELIDA | D34: 102512 | E34: M | F34: 12400 | G34: =VLOOKUP(A34,CPU!$A$1:$N$4674,9) -> 5.55 | H34: =VLOOKUP(A34,CPU!$A$1:$N$4674,10) -> 6.74 | I34: =ROUND(F34*H34,2) -> 83576
A35: F | B35: 6 | C35: FORNECIMENTOS - MATERIAL ASFÁLTICO (BDI DIFERENCIADO) | I35: =SUM(I36:I38) -> 2251907.94
A36: 25 | B36: 6.1 | C36: AQUISIÇÃO DE EMULSÃO ASFÁLTICA PARA IMPRIMAÇÃO (EAI) - EXCLUSIVE TRANSPORTE | D36: CPU.7 | E36: T | F36: 36 | G36: =VLOOKUP(A36,CPU!$A$1:$N$4674,9) -> 2812.65 | H36: =VLOOKUP(A36,CPU!$A$1:$N$4674,10) -> 3234.55 | I36: =ROUND(F36*H36,2) -> 116443.8
A37: 26 | B37: 6.2 | C37: AQUISIÇÃO DE EMULSAO ASFALTICA CATIONICA RR-1C - EXCLUSIVE TRANSPORTE | D37: CPU.8 | E37: T | F37: 11.995 | G37: =VLOOKUP(A37,CPU!$A$1:$N$4674,9) -> 2736.39 | H37: =VLOOKUP(A37,CPU!$A$1:$N$4674,10) -> 3146.85 | I37: =ROUND(F37*H37,2) -> 37746.47
A38: 27 | B38: 6.3 | C38: AQUISIÇÃO DE CONCRETO BETUMINOSO USINADO A QUENTE (CBUQ) PARA PAVIMENTACAO ASFALTICA, PADRAO DNIT, FAIXA C, COM CAP 50/70 - EXCLUSIVE TRANSPORTE | D38: CPU.9 | E38: T | F38: 3145.004 | G38: =VLOOKUP(A38,CPU!$A$1:$N$4674,9) -> 580 | H38: =VLOOKUP(A38,CPU!$A$1:$N$4674,10) -> 667 | I38: =ROUND(F38*H38,2) -> 2097717.67
B39: TOTAL GERAL DA OBRA COM BDI | I39: =SUM(I9,I15,I23,I29,I35,I26) -> 3999560

Sheet CPU
A1: 1 | B1: CODEVASF | E1: COMPOSIÇÃO DE PREÇO UNITÁRIO | I1: =H12 -> 25031.26 | J1: =H14 -> 30410.48 | K1: BDI CALCULADO: | M1: =ORÇAMENTO!I6 -> 0.2149
B2: OBRA: | C2: =ORÇAMENTO!C5 -> PAVIMENTAÇÃO ASFÁLTICA EM CBUQ - ITEM 2: MORRO DA CANELA, MORRO DO PAREDÃO, MORRO DO BAGUAÇÚ, MORRO DO RETIRO E AV. LÁZARO LONDE (MATUTINA / MG) - | G2: DATA: | H2: =ORÇAMENTO!C6 -> SETEMBRO / 2023 | K2: BDI DIFERENCIADO: | M2: ='BDI FORN'!D31/100 -> 0.15
B3: SERVIÇO: | C3: =VLOOKUP(A1,ORÇAMENTO!A10:I30,3) -> MOBILIZAÇÃO E DESMOBILIZAÇÃO (INCLUSIVE ENTRE TRECHOS) | E3: Referência: | F3: =VLOOKUP(A1,ORÇAMENTO!$A$10:$I$30,4) -> CPU.1 | G3: UNIDADE: | H3: =VLOOKUP(A1,ORÇAMENTO!A10:I30,5) -> GL
B5: TIPO ITEM | C5: CODIGO ITEM | D5: DESCRIÇÃO ITEM | E5: UNIDADE ITEM | F5: COEFICIENTE | G5: PRECO UNITARIO | H5: CUSTO TOTAL
B6: COMPOSICAO | C6: 89876 | D6: CAMINHÃO BASCULANTE 14 M3, COM CAVALO MECÂNICO DE CAPACIDADE MÁXIMA DE TRAÇÃO COMBINADO DE 36000 KG, POTÊNCIA 286 CV, INCLUSIVE SEMIREBOQUE COM CAÇAMBA METÁLICA | E6: CHP DIURNO. | F6: 16 | G6: 286.2 | H6: =ROUNDDOWN(F6*G6,2) -> 4579.2
B7: COMPOSICAO | C7: 89877 | D7: CAMINHÃO BASCULANTE 14 M3, COM CAVALO MECÂNICO DE CAPACIDADE MÁXIMA DE TRAÇÃO COMBINADO DE 36000 KG, POTÊNCIA 286 CV, INCLUSIVE SEMIREBOQUE COM CAÇAMBA METÁLICA | E7: CHI DIURNO. | F7: 16 | G7: 82.81 | H7: =ROUNDDOWN(F7*G7,2) -> 1324.96
B8: COMPOSICAO | C8: 5914640 | D8: TRANSPORTE COM CAVALO MECÂNICO COM SEMIRREBOQUE COM CAPACIDADE DE 30 T - RODOVIA PAVIMENTADA | E8: T.KM | F8: 5805 | G8: 0.58 | H8: =ROUNDDOWN(F8*G8,2) -> 3366.9
B9: COMPOSICAO | C9: 5914639 | D9: TRANSPORTE COM CAVALO MECÂNICO COM SEMIRREBOQUE COM CAPACIDADE DE 30 T - ENTRE TRECHOS | E9: T.KM | F9: 3628.125 | G9: 0.72 | H9: =ROUNDDOWN(F9*G9,2) -> 2612.25
B10: COMPOSIÇÃO | C10: 88316 | D10: SERVENTE COM ENCARGOS COMPLEMENTARES | E10: H | F10: 32 | G10: 19.76 | H10: =ROUNDDOWN(F10*G10,2) -> 632.32
B11: PRODUÇÃO DA EQUIPE | E11: 0.5 | F11: CUSTO | H11: =SUM(H6:H10) -> 12515.63
B12: TOTAL | H12: =H11/E11 -> 25031.26 | I12: OK
B13: BDI % | H13: =1+$M$1 -> 1.2149
B14: TOTAL DO SERVIÇO - R$ | H14: =ROUND(H12*H13,2) -> 30410.48
A16: =A1+1 -> 2 | B16: CODEVASF | E16: COMPOSIÇÃO DE PREÇO UNITÁRIO | I16: =H30 -> 225118.96 | J16: =H32 -> 273497.02
B17: OBRA: | C17: =$C$2 -> PAVIMENTAÇÃO ASFÁLTICA EM CBUQ - ITEM 2: MORRO DA CANELA, MORRO DO PAREDÃO, MORRO DO BAGUAÇÚ, MORRO DO RETIRO E AV. LÁZARO LONDE (MATUTINA / MG) - | G17: DATA: | H17: =$H$2 -> SETEMBRO / 2023
B18: SERVIÇO: | C18: =VLOOKUP(A16,ORÇAMENTO!$A$10:$I$30,3) -> ADMINISTRAÇÃO LOCAL | E18: SINAPI | F18: =VLOOKUP(A16,ORÇAMENTO!$A$10:$I$30,4) -> CPU.2 | G18: UNIDADE: | H18: =VLOOKUP(A16,ORÇAMENTO!$A$10:$I$30,5) -> GL
B20: TIPO ITEM | C20: CODIGO ITEM | D20: DESCRIÇÃO ITEM | E20: UNIDADE ITEM | F20: COEFICIENTE | G20: PRECO UNITARIO | H20: CUSTO TOTAL
B21: INSUMO | C21: 14250 | D21: ENERGIA ELÉTRICA | E21: kwh | F21: 60 | G21: 0.95 | H21: =ROUNDDOWN(F21*G21,2) -> 57
B22: INSUMO | C22: 44480 | D22: TARIFA "A" - ÁGUA/ESGOTO | E22: m³ | F22: 6 | G22: 17.97 | H22: 107.82
B23: COTAÇÃO | C23: MERC. | D23: TELEFONE (PLANO CONTROLE) | E23: UNID | F23: 3 | G23: 59.9 | H23: 179.7
B24: COMPOSICAO | C24: 90777 | D24: Engenheiro Civil Júnior com encargos complementares | E24: H | F24: 55 | G24: 114.12 | H24: 6276.6
B25: COMPOSICAO | C25: 90776 | D25: Encarregado Geral com encargos complementares | E25: H | F25: 220 | G25: 57.73 | H25: 12700.6
B26: COMPOSICAO | C26: 88321 | D26: Tecnico de Laboratório com encargos complementares | E26: H | F26: 110 | G26: 45.45 | H26: 4999.5
B27: COMPOSICAO | C27: 100309 | D27: Tecnico em Segurança do Trabalho com encargos complementares | E27: H | F27: 55 | G27: 45.71 | H27: 2514.05
B28: COMPOSICAO | C28: 90772 | D28: Auxiliar de escritório com encargos complementares | E28: H | F28: 55 | G28: 23.72 | H28: 1304.6
B29: PRODUÇÃO DA EQUIPE | E29: =1/8 -> 0.125 | F29: CUSTO | H29: =SUM(H21:H28) -> 28139.87
B30: TOTAL | H30: =ROUND(H29/E29,2) -> 225118.96 | I30: OK
B31: BDI % | H31: =1+$M$1 -> 1.2149
B32: TOTAL DO SERVIÇO - R$ | H32: =ROUND(H30*H31,2) -> 273497.02
A34: =A16+1 -> 3 | B34: CODEVASF | E34: COMPOSIÇÃO DE PREÇO UNITÁRIO | I34: =H43 -> 36189 | J34: =H45 -> 43966.02
B35: OBRA: | C35: =$C$2 -> PAVIMENTAÇÃO ASFÁLTICA EM CBUQ - ITEM 2: MORRO DA CANELA, MORRO DO PAREDÃO, MORRO DO BAGUAÇÚ, MORRO DO RETIRO E AV. LÁZARO LONDE (MATUTINA / MG) - | G35: DATA: | H35: =$H$2 -> SETEMBRO / 2023
B36: SERVIÇO: | C36: =VLOOKUP(A34,ORÇAMENTO!$A$10:$I$30,3) -> CANTEIRO DE OBRAS (PARA TODAS AS FRENTES DE SERVIÇO) | E36: SINAPI | F36: =VLOOKUP(A34,ORÇAMENTO!$A$10:$I$30,4) -> CPU.3 | G36: UNIDADE: | H36: =VLOOKUP(A34,ORÇAMENTO!$A$10:$I$30,5) -> GL
B38: TIPO ITEM | C38: CODIGO ITEM | D38: DESCRIÇÃO ITEM | E38: UNIDADE ITEM | F38: COEFICIENTE | G38: PRECO UNITARIO | H38: CUSTO TOTAL
B39: INSUMO | C39: 10775 | D39: LOCACAO DE CONTAINER 2,30 X 6,00 M, ALT. 2,50 M, COM 1 SANITARIO, PARA ESCRITORIO, COMPLETO, SEM DIVISORIAS INTERNAS | E39: MÊS | F39: 16 | G39: 995 | H39: =ROUNDDOWN(F39*G39,2) -> 15920
B40: INSUMO | C40: 10779 | D40: LOCACAO DE CONTAINER 2,30 X 4,30 M, ALT. 2,50 M, P/ SANITARIO, C/ 5 BACIAS, 1 LAVATORIO E 4 MICTORIOS | E40: MÊS | F40: 16 | G40: 1243.75 | H40: =ROUNDDOWN(F40*G40,2) -> 19900
B41: INSUMO | C41: 37525 | D41: TELA PLASTICA TECIDA LISTRADA BRANCA E LARANJA, TIPO GUARDA CORPO, EM POLIETILENO MONOFILADO, ROLO 1,20 X 50 M (L X C) | E41: M | F41: 100 | G41: 3.69 | H41: =ROUNDDOWN(F41*G41,2) -> 369
B42: PRODUÇÃO DA EQUIPE | E42: 1 | F42: CUSTO | H42: =SUM(H39:H41) -> 36189
B43: TOTAL | H43: =H42/E42 -> 36189 | I43: OK
B44: BDI % | H44: =1+$M$1 -> 1.2149
B45: TOTAL DO SERVIÇO - R$ | H45: =ROUND(H43*H44,2) -> 43966.02
A47: =A34+1 -> 4 | B47: CODEVASF | E47: COMPOSIÇÃO DE PREÇO UNITÁRIO | I47: =H61 -> 339.72 | J47: =H63 -> 412.73
B48: OBRA: | C48: =$C$2 -> PAVIMENTAÇÃO ASFÁLTICA EM CBUQ - ITEM 2: MORRO DA CANELA, MORRO DO PAREDÃO, MORRO DO BAGUAÇÚ, MORRO DO RETIRO E AV. LÁZARO LONDE (MATUTINA / MG) - | G48: DATA: | H48: =$H$2 -> SETEMBRO / 2023
B49: SERVIÇO: | C49: =VLOOKUP(A47,ORÇAMENTO!$A$10:$I$30,3) -> PLACA DE OBRA EM CHAPA DE AÇO GALVANIZADO | E49: SINAPI | F49: =VLOOKUP(A47,ORÇAMENTO!$A$10:$I$30,4) -> 103689 | G49: UNIDADE: | H49: =VLOOKUP(A47,ORÇAMENTO!$A$10:$I$30,5) -> M2
B51: TIPO ITEM | C51: CODIGO ITEM | D51: DESCRIÇÃO ITEM | E51: UNIDADE ITEM | F51: COEFICIENTE | G51: PRECO UNITARIO | H51: CUSTO TOTAL
B52: INSUMO | C52: 4509 | D52: SARRAFO *2,5 X 10* CM EM PINUS, MISTA OU EQUIVALENTE DA REGIAO - BRUTA | E52: M | F52: 3,2083000 | G52: 4,41 | H52: =ROUNDDOWN(F52*G52,2) -> 14.14
B53: INSUMO | C53: 4813 | D53: PLACA DE OBRA (PARA CONSTRUCAO CIVIL) EM CHAPA GALVANIZADA *N. 22*, ADESIVADA, DE *2,4 X 1,2* M (SEM POSTES PARA FIXACAO) | E53: M2 | F53: 1,0000000 | G53: 250,00 | H53: 250
B54: INSUMO | C54: 5065 | D54: PREGO DE ACO POLIDO COM CABECA 10 X 10 (7/8 X 17) | E54: KG | F54: 0,0113000 | G54: 36,57 | H54: 0.41
B55: INSUMO | C55: 5069 | D55: PREGO DE ACO POLIDO COM CABECA 17 X 27 (2 1/2 X 11) | E55: KG | F55: 0,0132000 | G55: 19,59 | H55: 0.25
B56: COMPOSICAO | C56: 88262 | D56: CARPINTEIRO DE FORMAS COM ENCARGOS COMPLEMENTARES | E56: H | F56: 0,3729000 | G56: 27,05 | H56: 10.08
B57: COMPOSICAO | C57: 88316 | D57: SERVENTE COM ENCARGOS COMPLEMENTARES | E57: H | F57: 1,1186000 | G57: 19,76 | H57: 22.1
B58: INSUMO | C58: 4115 | D58: MADEIRA ROLICA TRATADA, D = 12 A 15 CM, H = 3,00 M, EM EUCALIPTO OU EQUIVALENTE | E58: M | F58: 2 | G58: 21.37 | H58: 42.74
H59: 0
B60: PRODUÇÃO DA EQUIPE | E60: 1 | F60: CUSTO | H60: =SUM(H52:H59) -> 339.72
B61: TOTAL | H61: =H60/E60 -> 339.72 | I61: OK
B62: BDI % | H62: =1+$M$1 -> 1.2149
B63: TOTAL DO SERVIÇO - R$ | H63: =ROUND(H61*H62,2) -> 412.73
A65: =A47+1 -> 5 | B65: CODEVASF | E65: COMPOSIÇÃO DE PREÇO UNITÁRIO | I65: =H77 -> 0.33 | J65: =H79 -> 0.4
B66: OBRA: | C66: =$C$2 -> PAVIMENTAÇÃO ASFÁLTICA EM CBUQ - ITEM 2: MORRO DA CANELA, MORRO DO PAREDÃO, MORRO DO BAGUAÇÚ, MORRO DO RETIRO E AV. LÁZARO LONDE (MATUTINA / MG) - | G66: DATA: | H66: =$H$2 -> SETEMBRO / 2023
B67: SERVIÇO: | C67: =VLOOKUP(A65,ORÇAMENTO!$A$10:$I$30,3) -> SERVIÇOS TOPOGRÁFICOS PARA PAVIMENTAÇÃO, INCLUSIVE NOTA DE SERVIÇO, ACOMPANHAMENTO E GREIDE | E67: SINAPI | F67: =VLOOKUP(A65,ORÇAMENTO!$A$10:$I$30,4) -> 78472 | G67: UNIDADE: | H67: =VLOOKUP(A65,ORÇAMENTO!$A$10:$I$30,5) -> M2
B69: TIPO ITEM | C69: CODIGO ITEM | D69: DESCRIÇÃO ITEM | E69: UNIDADE ITEM | F69: COEFICIENTE | G69: PRECO UNITARIO | H69: CUSTO TOTAL
B70: COMPOSICAO | C70: 88253 | D70: AUXILIAR DE TOPÓGRAFO COM ENCARGOS COMPLEMENTARES | E70: H | F70: 0.0025 | G70: 21.57 | H70: =ROUNDDOWN(F70*G70,2) -> 0.05
B71: COMPOSICAO | C71: 88288 | D71: NIVELADOR COM ENCARGOS COMPLEMENTARES | E71: H | F71: 0.0025 | G71: 26.99 | H71: 0.06
B72: COMPOSICAO | C72: 88316 | D72: SERVENTE COM ENCARGOS COMPLEMENTARES | E72: H | F72: 0.0075 | G72: 19.76 | H72: 0.14
B73: COMPOSICAO | C73: 88597 | D73: DESENHISTA DETALHISTA COM ENCARGOS COMPLEMENTARES | E73: H | F73: 0.002 | G73: 29.72 | H73: 0.05
B74: COMPOSICAO | C74: 92145 | D74: CAMINHONETE CABINE SIMPLES COM MOTOR 1.6 FLEX, CÂMBIO MANUAL, POTÊNCIA 101/104 CV, 2 PORTAS | E74: CHP | F74: 0.0005 | G74: 73.33 | H74: 0.03
H75: 0
B76: PRODUÇÃO DA EQUIPE | E76: 1 | F76: CUSTO | H76: =SUM(H70:H75) -> 0.33
B77: TOTAL | H77: =H76/E76 -> 0.33 | I77: OK
B78: BDI % | H78: =1+$M$1 -> 1.2149
B79: TOTAL DO SERVIÇO - R$ | H79: =ROUND(H77*H78,2) -> 0.4
A81: =A65+1 -> 6 | B81: CODEVASF | E81: COMPOSIÇÃO DE PREÇO UNITÁRIO | I81: =H90 -> 2.03 | J81: =H92 -> 2.47
B82: OBRA: | C82: =$C$2 -> PAVIMENTAÇÃO ASFÁLTICA EM CBUQ - ITEM 2: MORRO DA CANELA, MORRO DO PAREDÃO, MORRO DO BAGUAÇÚ, MORRO DO RETIRO E AV. LÁZARO LONDE (MATUTINA / MG) - | G82: DATA: | H82: =$H$2 -> SETEMBRO / 2023
B83: SERVIÇO: | C83: =VLOOKUP(A81,ORÇAMENTO!$A$10:$I$30,3) -> ESCAVAÇÃO HORIZONTAL EM SOLO DE 1A CATEGORIA | E83: SINAPI | F83: =VLOOKUP(A81,ORÇAMENTO!$A$10:$I$30,4) -> 101116 | G83: UNIDADE: | H83: =VLOOKUP(A81,ORÇAMENTO!$A$10:$I$30,5) -> M3
B85: TIPO ITEM | C85: CODIGO ITEM | D85: DESCRIÇÃO ITEM | E85: UNIDADE ITEM | F85: COEFICIENTE | G85: PRECO UNITARIO | H85: CUSTO TOTAL
B86: COMPOSICAO | C86: 5847 | D86: TRATOR DE ESTEIRAS, POTÊNCIA 170 HP, PESO OPERACIONAL 19 T, CAÇAMBA 5,2 M3 | E86: CHP | F86: 0,0048000 | G86: 231,82 | H86: =ROUNDDOWN(F86*G86,2) -> 1.11
B87: COMPOSICAO | C87: 5849 | D87: TRATOR DE ESTEIRAS, POTÊNCIA 170 HP, PESO OPERACIONAL 19 T, CAÇAMBA 5,2 M3 | E87: CHI | F87: 0,0082000 | G87: 82,14 | H87: =ROUNDDOWN(F87*G87,2) -> 0.67
B88: COMPOSICAO | C88: 88316 | D88: SERVENTE COM ENCARGOS COMPLEMENTARES | E88: H | F88: 0,0131000 | G88: 19,76 | H88: =ROUNDDOWN(F88*G88,2) -> 0.25
B89: PRODUÇÃO DA EQUIPE | E89: 1 | F89: CUSTO | H89: =SUM(H86:H88) -> 2.03
B90: TOTAL | H90: =H89/E89 -> 2.03 | I90: OK
B91: BDI % | H91: =1+$M$1 -> 1.2149
B92: TOTAL DO SERVIÇO - R$ | H92: =ROUND(H90*H91,2) -> 2.47
A94: 7 | B94: CODEVASF | E94: COMPOSIÇÃO DE PREÇO UNITÁRIO | I94: =H104 -> 4.84 | J94: =H106 -> 5.88
B95: OBRA: | C95: =$C$2 -> PAVIMENTAÇÃO ASFÁLTICA EM CBUQ - ITEM 2: MORRO DA CANELA, MORRO DO PAREDÃO, MORRO DO BAGUAÇÚ, MORRO DO RETIRO E AV. LÁZARO LONDE (MATUTINA / MG) - | G95: DATA: | H95: =$H$2 -> SETEMBRO / 2023
B96: SERVIÇO: | C96: =VLOOKUP(A94,ORÇAMENTO!$A$10:$I$30,3) -> CARGA, MANOBRA E DESCARGA DE SOLOS E MATERIAIS GRANULARES EM CAMINHÃO BASCULANTE | E96: SINAPI | F96: =VLOOKUP(A94,ORÇAMENTO!$A$10:$I$30,4) -> 100976 | G96: UNIDADE: | H96: =VLOOKUP(A94,ORÇAMENTO!$A$10:$I$30,5) -> M3
B98: TIPO ITEM | C98: CODIGO ITEM | D98: DESCRIÇÃO ITEM | E98: UNIDADE ITEM | F98: COEFICIENTE | G98: PRECO UNITARIO | H98: CUSTO TOTAL
B99: COMPOSICAO | C99: 5940 | D99: PÁ CARREGADEIRA SOBRE RODAS, POTÊNCIA LÍQUIDA 128 HP, CAPACIDADE DA CAÇAMBA 1,7 A 2,8 M3, PESO OPERACIONAL 11632 KG | E99: CHP | F99: 0,0083000 | G99: 205,93 | H99: =ROUNDDOWN(F99*G99,2) -> 1.7
B100: COMPOSICAO | C100: 5942 | D100: PÁ CARREGADEIRA SOBRE RODAS, POTÊNCIA LÍQUIDA 128 HP, CAPACIDADE DA CAÇAMBA 1,7 A 2,8 M3, PESO OPERACIONAL 11632 KG | E100: CHI | F100: 0,0074000 | G100: 90,02 | H100: =ROUNDDOWN(F100*G100,2) -> 0.66
B101: COMPOSICAO | C101: 89883 | D101: CAMINHÃO BASCULANTE 18 M3, COM CAVALO MECÂNICO DE CAPACIDADE MÁXIMA DE TRAÇÃO COMBINADO DE 45000 KG, POTÊNCIA 330 CV, INCLUSIVE SEMIREBOQUE COM CAÇAMBA METÁLICA | E101: CHP | F101: 0.0053 | G101: 314,64 | H101: =ROUNDDOWN(F101*G101,2) -> 1.66
B102: COMPOSICAO | C102: 89884 | D102: CAMINHÃO BASCULANTE 18 M3, COM CAVALO MECÂNICO DE CAPACIDADE MÁXIMA DE TRAÇÃO COMBINADO DE 45000 KG, POTÊNCIA 330 CV, INCLUSIVE SEMIREBOQUE COM CAÇAMBA METÁLICA | E102: CHI | F102: 0,0095000 | G102: 86,36 | H102: =ROUNDDOWN(F102*G102,2) -> 0.82
B103: PRODUÇÃO DA EQUIPE | E103: 1 | F103: CUSTO | H103: =SUM(H99:H102) -> 4.84
B104: TOTAL | H104: =H103/E103 -> 4.84 | I104: OK
B105: BDI % | H105: =1+$M$1 -> 1.2149
B106: TOTAL DO SERVIÇO - R$ | H106: =ROUND(H104*H105,2) -> 5.88
A108: 8 | B108: CODEVASF | E108: COMPOSIÇÃO DE PREÇO UNITÁRIO | I108: =H122 -> 2.53 | J108: =H124 -> 3.07
B109: OBRA: | C109: =$C$2 -> PAVIMENTAÇÃO ASFÁLTICA EM CBUQ - ITEM 2: MORRO DA CANELA, MORRO DO PAREDÃO, MORRO DO BAGUAÇÚ, MORRO DO RETIRO E AV. LÁZARO LONDE (MATUTINA / MG) - | G109: DATA: | H109: =$H$2 -> SETEMBRO / 2023
B110: SERVIÇO: | C110: =VLOOKUP(A108,ORÇAMENTO!$A$10:$I$30,3) -> REGULARIZAÇÃO E COMPACTAÇÃO DO SUBLEITO | E110: SICRO | F110: =VLOOKUP(A108,ORÇAMENTO!$A$10:$I$30,4) -> 100576 | G110: UNIDADE: | H110: M2
B112: TIPO ITEM | C112: CODIGO ITEM | D112: DESCRIÇÃO ITEM | E112: UNIDADE ITEM | F112: COEFICIENTE | G112: PRECO UNITARIO | H112: CUSTO TOTAL
B113: COMPOSICAO | C113: 5901 | D113: CAMINHÃO PIPA 10.000 L TRUCADO, PESO BRUTO TOTAL 23.000 KG, CARGA ÚTIL MÁXIMA 15.935 KG, DISTÂNCIA ENTRE EIXOS 4,8 M, POTÊNCIA 230 CV, INCLUSIVE TANQUE DE AÇO PARA TRANSPORTE DE ÁGUA | E113: CHP | F113: 0,0010000 | G113: 264,71 | H113: =ROUNDDOWN(F113*G113,2) -> 0.26
B114: COMPOSICAO | C114: 5903 | D114: CAMINHÃO PIPA 10.000 L TRUCADO, PESO BRUTO TOTAL 23.000 KG, CARGA ÚTIL MÁXIMA 15.935 KG, DISTÂNCIA ENTRE EIXOS 4,8 M, POTÊNCIA 230 CV, INCLUSIVE TANQUE DE AÇO PARA TRANSPORTE DE ÁGUA | E114: CHI | F114: 0,0070000 | G114: 67,26 | H114: 0.47
B115: COMPOSICAO | C115: 5932 | D115: MOTONIVELADORA POTÊNCIA BÁSICA LÍQUIDA (PRIMEIRA MARCHA) 125 HP, PESO BRUTO 13032 KG, LARGURA DA LÂMINA DE 3,7 M | E115: CHP | F115: 0,0001000 | G115: 244,89 | H115: 0.02
B116: COMPOSICAO | C116: 5934 | D116: MOTONIVELADORA POTÊNCIA BÁSICA LÍQUIDA (PRIMEIRA MARCHA) 125 HP, PESO BRUTO 13032 KG, LARGURA DA LÂMINA DE 3,7 M | E116: CHI | F116: 0,0080000 | G116: 101,62 | H116: 0.81
B117: COMPOSICAO | C117: 73436 | D117: ROLO COMPACTADOR VIBRATÓRIO PÉ DE CARNEIRO PARA SOLOS, POTÊNCIA 80 HP, PESO OPERACIONAL SEM/COM LASTRO 7,4 / 8,8 T, LARGURA DE TRABALHO 1,68 M | E117: CHP | F117: 0,0020000 | G117: 210,75 | H117: 0.42
B118: COMPOSICAO | C118: 88316 | D118: SERVENTE COM ENCARGOS COMPLEMENTARES | E118: H | F118: 0,0080000 | G118: 19,76 | H118: 0.15
B119: COMPOSICAO | C119: 93244 | D119: ROLO COMPACTADOR VIBRATÓRIO PÉ DE CARNEIRO PARA SOLOS, POTÊNCIA 80 HP, PESO OPERACIONAL SEM/COM LASTRO 7,4 / 8,8 T, LARGURA DE TRABALHO 1,68 M | E119: CHI | F119: 0,0060000 | G119: 66,89 | H119: 0.4
B121: PRODUÇÃO DA EQUIPE | E121: 1 | F121: CUSTO | H121: =SUM(H113:H120) -> 2.53
B122: TOTAL | H122: =H121/E121 -> 2.53 | I122: OK
B123: BDI % | H123: =1+$M$1 -> 1.2149
B124: TOTAL DO SERVIÇO - R$ | H124: =ROUND(H122*H123,2) -> 3.07
A126: 9 | B126: CODEVASF | E126: COMPOSIÇÃO DE PREÇO UNITÁRIO | I126: =H141 -> 11.61 | J126: =H143 -> 14.1
B127: OBRA: | C127: =$C$2 -> PAVIMENTAÇÃO ASFÁLTICA EM CBUQ - ITEM 2: MORRO DA CANELA, MORRO DO PAREDÃO, MORRO DO BAGUAÇÚ, MORRO DO RETIRO E AV. LÁZARO LONDE (MATUTINA / MG) - | G127: DATA: | H127: =$H$2 -> SETEMBRO / 2023
B128: SERVIÇO: | C128: =VLOOKUP(A126,ORÇAMENTO!$A$10:$I$30,3) -> EXECUÇÃO E COMPACTAÇÃO DE BASE E OU SUB BASE PARA PAVIMENTAÇÃO DE SOLOS DE COMPORTAMENTO LATERÍTICO (ARENOSO) - EXCLUSIVE SOLO, ESCAVAÇÃO, CARGA E TRANSPORTE | E128: SINAPI | F128: =VLOOKUP(A126,ORÇAMENTO!$A$10:$I$30,4) -> 96388 | G128: UNIDADE: | H128: =VLOOKUP(A126,ORÇAMENTO!$A$10:$I$30,5) -> M3
B130: TIPO ITEM | C130: CODIGO ITEM | D130: DESCRIÇÃO ITEM | E130: UNIDADE ITEM | F130: COEFICIENTE | G130: PRECO UNITARIO | H130: CUSTO TOTAL
B131: COMPOSICAO | C131: 5684 | D131: ROLO COMPACTADOR VIBRATÓRIO DE UM CILINDRO AÇO LISO, POTÊNCIA 80 HP, PESO OPERACIONAL MÁXIMO 8,1 T, IMPACTO DINÂMICO 16,15 / 9,5 T, LARGURA DE TRABALHO 1,68 M | E131: CHP | F131: 0,0030000 | G131: 148,46 | H131: =ROUNDDOWN(F131*G131,2) -> 0.44
B132: COMPOSICAO | C132: 5685 | D132: ROLO COMPACTADOR VIBRATÓRIO DE UM CILINDRO AÇO LISO, POTÊNCIA 80 HP, PESO OPERACIONAL MÁXIMO 8,1 T, IMPACTO DINÂMICO 16,15 / 9,5 T, LARGURA DE TRABALHO 1,68 M | E132: CHI | F132: 0,0230000 | G132: 65,46 | H132: 1.5
B133: COMPOSICAO | C133: 5901 | D133: CAMINHÃO PIPA 10.000 L TRUCADO, PESO BRUTO TOTAL 23.000 KG, CARGA ÚTIL MÁXIMA 15.935 KG, DISTÂNCIA ENTRE EIXOS 4,8 M, POTÊNCIA 230 CV, INCLUSIVE TANQUE DE AÇO PARA TRANSPORTE DE ÁGUA | E133: CHP | F133: 0,0040000 | G133: 264,71 | H133: 1.05
B134: COMPOSICAO | C134: 5903 | D134: CAMINHÃO PIPA 10.000 L TRUCADO, PESO BRUTO TOTAL 23.000 KG, CARGA ÚTIL MÁXIMA 15.935 KG, DISTÂNCIA ENTRE EIXOS 4,8 M, POTÊNCIA 230 CV, INCLUSIVE TANQUE DE AÇO PARA TRANSPORTE DE ÁGUA | E134: CHI | F134: 0,0220000 | G134: 67,26 | H134: 1.47
B135: COMPOSICAO | C135: 5932 | D135: MOTONIVELADORA POTÊNCIA BÁSICA LÍQUIDA (PRIMEIRA MARCHA) 125 HP, PESO BRUTO 13032 KG, LARGURA DA LÂMINA DE 3,7 M | E135: CHP | F135: 0,0080000 | G135: 244,89 | H135: 1.95
B136: COMPOSICAO | C136: 5934 | D136: MOTONIVELADORA POTÊNCIA BÁSICA LÍQUIDA (PRIMEIRA MARCHA) 125 HP, PESO BRUTO 13032 KG, LARGURA DA LÂMINA DE 3,7 M | E136: CHI | F136: 0,0190000 | G136: 101,62 | H136: 1.93
B137: COMPOSICAO | C137: 88316 | D137: SERVENTE COM ENCARGOS COMPLEMENTARES | E137: H | F137: 0,0260000 | G137: 19,76 | H137: 0.51
B138: COMPOSICAO | C138: 96463 | D138: ROLO COMPACTADOR DE PNEUS, ESTATICO, PRESSAO VARIAVEL, POTENCIA 110 HP, PESO SEM/COM LASTRO 10,8/27 T, LARGURA DE ROLAGEM 2,30 M | E138: CHP | F138: 0,0040000 | G138: 203,13 | H138: 0.81
B139: COMPOSICAO | C139: 96464 | D139: ROLO COMPACTADOR DE PNEUS, ESTATICO, PRESSAO VARIAVEL, POTENCIA 110 HP, PESO SEM/COM LASTRO 10,8/27 T, LARGURA DE ROLAGEM 2,30 M | E139: CHI | F139: 0,0220000 | G139: 89,07 | H139: 1.95
B140: PRODUÇÃO DA EQUIPE | E140: 1 | F140: CUSTO | H140: =SUM(H131:H139) -> 11.61
B141: TOTAL | H141: =H140/E140 -> 11.61 | I141: OK
B142: BDI % | H142: =1+$M$1 -> 1.2149
B143: TOTAL DO SERVIÇO - R$ | H143: =ROUND(H141*H142,2) -> 14.1
A145: 10 | B145: CODEVASF | E145: COMPOSIÇÃO DE PREÇO UNITÁRIO | I145: =H160 -> 1.12 | J145: =H162 -> 1.36
B146: OBRA: | C146: =$C$2 -> PAVIMENTAÇÃO ASFÁLTICA EM CBUQ - ITEM 2: MORRO DA CANELA, MORRO DO PAREDÃO, MORRO DO BAGUAÇÚ, MORRO DO RETIRO E AV. LÁZARO LONDE (MATUTINA / MG) - | G146: DATA: | H146: =$H$2 -> SETEMBRO / 2023
B147: SERVIÇO: | C147: =VLOOKUP(A145,ORÇAMENTO!$A$10:$I$30,3) -> IMPRIMAÇÃO COM EMULSÃO ASFÁLTICA (EAI) | E147: SINAPI | F147: =VLOOKUP(A145,ORÇAMENTO!$A$10:$I$30,4) -> 96401 | G147: UNIDADE: | H147: =VLOOKUP(A145,ORÇAMENTO!$A$10:$I$30,5) -> M2
B149: TIPO ITEM | C149: CODIGO ITEM | D149: DESCRIÇÃO ITEM | E149: UNIDADE ITEM | F149: COEFICIENTE | G149: PRECO UNITARIO | H149: CUSTO TOTAL
B150: COMPOSICAO | C150: 5839 | D150: VASSOURA MECÂNICA REBOCÁVEL COM ESCOVA CILÍNDRICA, LARGURA ÚTIL DE VARRIMENTO DE 2,44 M | E150: CHP | F150: 0,0020000 | G150: 9.77 | H150: =ROUNDDOWN(F150*G150,2) -> 0.01
B151: COMPOSICAO | C151: 5841 | D151: VASSOURA MECÂNICA REBOCÁVEL COM ESCOVA CILÍNDRICA, LARGURA ÚTIL DE VARRIMENTO DE 2,44 M | E151: CHI | F151: 0,0040000 | G151: 4.65 | H151: 0.01
B152: INSUMO | C152: ANP | D152: EMULSÃO ASFÁLTICA PARA IMPRIMAÇÃO - EAI (FORNECIMENTO COM BDI DIFERENCIADO) | E152: T | F152: =1.3/1000 -> 0.0013 | H152: 0
B153: COMPOSICAO | C153: 83362 | D153: ESPARGIDOR DE ASFALTO PRESSURIZADO, TANQUE 6 M3 COM ISOLAÇÃO TÉRMICA, AQUECIDO COM 2 MAÇARICOS, COM BARRA ESPARGIDORA 3,60 M, MONTADO SOBRE CAMINHÃO TOCO, PBT 14.300 KG, POTÊNCIA 185 CV | E153: CHP | F153: 0,0010000 | G153: 232.92 | H153: 0.23
B154: COMPOSICAO | C154: 88316 | D154: SERVENTE COM ENCARGOS COMPLEMENTARES | E154: H | F154: 0,0060000 | G154: 19.76 | H154: 0.11
B155: COMPOSICAO | C155: 89035 | D155: TRATOR DE PNEUS, POTÊNCIA 85 CV, TRAÇÃO 4X4, PESO COM LASTRO DE 4.675 KG | E155: CHP | F155: 0,0020000 | G155: 119.96 | H155: 0.23
B156: COMPOSICAO | C156: 89036 | D156: TRATOR DE PNEUS, POTÊNCIA 85 CV, TRAÇÃO 4X4, PESO COM LASTRO DE 4.675 KG | E156: CHI | F156: 0,0040000 | G156: 52.19 | H156: 0.2
B157: COMPOSICAO | C157: 91486 | D157: ESPARGIDOR DE ASFALTO PRESSURIZADO, TANQUE 6 M3 COM ISOLAÇÃO TÉRMICA, AQUECIDO COM 2 MAÇARICOS, COM BARRA ESPARGIDORA 3,60 M, MONTADO SOBRE CAMINHÃO TOCO, PBT 14.300 KG, POTÊNCIA 185 CV | E157: CHI | F157: 0,0050000 | G157: 66.18 | H157: 0.33
H158: 0
B159: PRODUÇÃO DA EQUIPE | E159: 1 | F159: CUSTO | H159: =SUM(H150:H158) -> 1.12
B160: TOTAL | H160: =H159/E159 -> 1.12 | I160: OK
B161: BDI % | H161: =1+$M$1 -> 1.2149
B162: TOTAL DO SERVIÇO - R$ | H162: =ROUND(H160*H161,2) -> 1.36
A164: 11 | B164: CODEVASF | E164: COMPOSIÇÃO DE PREÇO UNITÁRIO | I164: =H179 -> 0.93 | J164: =H181 -> 1.13
B165: OBRA: | C165: =$C$2 -> PAVIMENTAÇÃO ASFÁLTICA EM CBUQ - ITEM 2: MORRO DA CANELA, MORRO DO PAREDÃO, MORRO DO BAGUAÇÚ, MORRO DO RETIRO E AV. LÁZARO LONDE (MATUTINA / MG) - | G165: DATA: | H165: =$H$2 -> SETEMBRO / 2023
B166: SERVIÇO: | C166: =VLOOKUP(A164,ORÇAMENTO!$A$10:$I$30,3) -> PINTURA DE LIGAÇÃO COM EMULSÃO ASFÁLTICA RR-1C | E166: SINAPI | F166: =VLOOKUP(A164,ORÇAMENTO!$A$10:$I$30,4) -> 96402 | G166: UNIDADE: | H166: M2
B168: TIPO ITEM | C168: CODIGO ITEM | D168: DESCRIÇÃO ITEM | E168: UNIDADE ITEM | F168: COEFICIENTE | G168: PRECO UNITARIO | H168: CUSTO TOTAL
B169: COMPOSICAO | C169: 5839 | D169: VASSOURA MECÂNICA REBOCÁVEL COM ESCOVA CILÍNDRICA, LARGURA ÚTIL DE VARRIMENTO DE 2,44 M | E169: CHP | F169: 0,0020000 | G169: 9.77 | H169: =ROUNDDOWN(F169*G169,2) -> 0.01
B170: COMPOSICAO | C170: 5841 | D170: VASSOURA MECÂNICA REBOCÁVEL COM ESCOVA CILÍNDRICA, LARGURA ÚTIL DE VARRIMENTO DE 2,44 M | E170: CHI | F170: 0,0040000 | G170: 4.65 | H170: 0.01
B171: INSUMO | C171: 41903 | D171: EMULSAO ASFALTICA CATIONICA RR-2C PARA USO EM PAVIMENTACAO ASFALTICA (FORNECIMENTO COM BDI DIFERENCIADO) | E171: KG | F171: 0,4500000 | H171: 0
B172: COMPOSICAO | C172: 83362 | D172: ESPARGIDOR DE ASFALTO PRESSURIZADO, TANQUE 6 M3 COM ISOLAÇÃO TÉRMICA, AQUECIDO COM 2 MAÇARICOS, COM BARRA ESPARGIDORA 3,60 M, MONTADO SOBRE CAMINHÃO TOCO, PBT 14.300 KG, POTÊNCIA 185 CV | E172: CHP | F172: 0,0004000 | G172: 232.92 | H172: 0.09
B173: COMPOSICAO | C173: 88316 | D173: SERVENTE COM ENCARGOS COMPLEMENTARES | E173: H | F173: 0,0055000 | G173: 19.76 | H173: 0.1
B174: COMPOSICAO | C174: 89035 | D174: TRATOR DE PNEUS, POTÊNCIA 85 CV, TRAÇÃO 4X4, PESO COM LASTRO DE 4.675 KG | E174: CHP | F174: 0,0017000 | G174: 119.96 | H174: 0.2
B175: COMPOSICAO | C175: 89036 | D175: TRATOR DE PNEUS, POTÊNCIA 85 CV, TRAÇÃO 4X4, PESO COM LASTRO DE 4.675 KG | E175: CHI | F175: 0,0038000 | G175: 52.19 | H175: 0.19
B176: COMPOSICAO | C176: 91486 | D176: ESPARGIDOR DE ASFALTO PRESSURIZADO, TANQUE 6 M3 COM ISOLAÇÃO TÉRMICA, AQUECIDO COM 2 MAÇARICOS, COM BARRA ESPARGIDORA 3,60 M, MONTADO SOBRE CAMINHÃO TOCO, PBT 14.300 KG, POTÊNCIA 185 CV | E176: CHI | F176: 0,0051000 | G176: 66.18 | H176: 0.33
H177: 0
B178: PRODUÇÃO DA EQUIPE | E178: 1 | F178: CUSTO | H178: =SUM(H169:H177) -> 0.93
B179: TOTAL | H179: =H178/E178 -> 0.93 | I179: OK
B180: BDI % | H180: =1+$M$1 -> 1.2149
B181: TOTAL DO SERVIÇO - R$ | H181: =ROUND(H179*H180,2) -> 1.13
A183: 12 | B183: CODEVASF | E183: COMPOSIÇÃO DE PREÇO UNITÁRIO | I183: =H201 -> 121.32 | J183: =H203 -> 147.39
B184: OBRA: | C184: =$C$2 -> PAVIMENTAÇÃO ASFÁLTICA EM CBUQ - ITEM 2: MORRO DA CANELA, MORRO DO PAREDÃO, MORRO DO BAGUAÇÚ, MORRO DO RETIRO E AV. LÁZARO LONDE (MATUTINA / MG) - | G184: DATA: | H184: =$H$2 -> SETEMBRO / 2023
B185: SERVIÇO: | C185: =VLOOKUP(A183,ORÇAMENTO!$A$10:$I$30,3) -> EXECUÇÃO DE PAVIMENTO COM APLICAÇÃO DE CONCRETO ASFÁLTICO USINADO A QUENTE (CBUQ), CAMADA DE ROLAMENTO - EXCLUSIVE TRANSPORTE | E185: SINAPI | F185: =VLOOKUP(A183,ORÇAMENTO!$A$10:$I$30,4) -> 95995 | G185: UNIDADE: | H185: =VLOOKUP(A183,ORÇAMENTO!$A$10:$I$30,5) -> M3
B187: TIPO ITEM | C187: CODIGO ITEM | D187: DESCRIÇÃO ITEM | E187: UNIDADE ITEM | F187: COEFICIENTE | G187: PRECO UNITARIO | H187: CUSTO TOTAL
B188: INSUMO | C188: 1518 | D188: CONCRETO BETUMINOSO USINADO A QUENTE (CBUQ) PARA PAVIMENTACAO ASFALTICA, PADRAO DNIT, FAIXA C, COM CAP 50/70 - AQUISICAO POSTO USINA (FORNECIMENTO COM BDI DIFERENCIADO) | E188: T | F188: 2,5548000 | H188: =ROUNDDOWN(F188*G188,2) -> 0
B189: COMPOSICAO | C189: 5835 | D189: VIBROACABADORA DE ASFALTO SOBRE ESTEIRAS, LARGURA DE PAVIMENTAÇÃO 1,90 M A 5,30 M, POTÊNCIA 105 HP CAPACIDADE 450 T/H | E189: CHP | F189: 0,0464000 | G189: 366,49 | H189: 17
B190: COMPOSICAO | C190: 5837 | D190: VIBROACABADORA DE ASFALTO SOBRE ESTEIRAS, LARGURA DE PAVIMENTAÇÃO 1,90 M A 5,30 M, POTÊNCIA 105 HP CAPACIDADE 450 T/H | E190: CHI | F190: 0,0949000 | G190: 147,82 | H190: 14.02
B191: COMPOSICAO | C191: 88314 | D191: RASTELEIRO COM ENCARGOS COMPLEMENTARES | E191: H | F191: 1,1301000 | G191: 26,52 | H191: 29.97
B192: COMPOSICAO | C192: 91386 | D192: CAMINHÃO BASCULANTE 10 M3, TRUCADO CABINE SIMPLES, PESO BRUTO TOTAL 23.000 KG, CARGA ÚTIL MÁXIMA 15.935 KG, DISTÂNCIA ENTRE EIXOS 4,80 M, POTÊNCIA 230 CV INCLUSIVE CAÇAMBA METÁLICA | E192: CHP | F192: 0,0464000 | G192: 228,50 | H192: 10.6
B193: COMPOSICAO | C193: 95631 | D193: ROLO COMPACTADOR VIBRATORIO TANDEM, ACO LISO, POTENCIA 125 HP, PESO SEM/COM LASTRO 10,20/11,65 T, LARGURA DE TRABALHO 1,73 M | E193: CHP | F193: 0,0805000 | G193: 210,29 | H193: 16.92
B194: COMPOSICAO | C194: 95632 | D194: ROLO COMPACTADOR VIBRATORIO TANDEM, ACO LISO, POTENCIA 125 HP, PESO SEM/COM LASTRO 10,20/11,65 T, LARGURA DE TRABALHO 1,73 M | E194: CHI | F194: 0,0607000 | G194: 83,23 | H194: 5.05
B195: COMPOSICAO | C195: 96155 | D195: TRATOR DE PNEUS COM POTÊNCIA DE 85 CV, TRAÇÃO 4X4, COM VASSOURA MECÂNICA ACOPLADA | E195: CHI | F195: 0,1071000 | G195: 56,63 | H195: 6.06
B196: COMPOSICAO | C196: 96157 | D196: TRATOR DE PNEUS COM POTÊNCIA DE 85 CV, TRAÇÃO 4X4, COM VASSOURA MECÂNICA ACOPLADA | E196: CHP | F196: 0,0341000 | G196: 128,67 | H196: 4.38
B197: COMPOSICAO | C197: 96463 | D197: ROLO COMPACTADOR DE PNEUS, ESTATICO, PRESSAO VARIAVEL, POTENCIA 110 HP, PESO SEM/COM LASTRO 10,8/27 T, LARGURA DE ROLAGEM 2,30 M | E197: CHP | F197: 0,0419000 | G197: 203,13 | H197: 8.51
B198: COMPOSICAO | C198: 96464 | D198: ROLO COMPACTADOR DE PNEUS, ESTATICO, PRESSAO VARIAVEL, POTENCIA 110 HP, PESO SEM/COM LASTRO 10,8/27 T, LARGURA DE ROLAGEM 2,30 M | E198: CHI | F198: 0,0990000 | G198: 89,07 | H198: 8.81
H199: 0
B200: PRODUÇÃO DA EQUIPE | E200: 1 | F200: CUSTO | H200: =SUM(H188:H199) -> 121.32
B201: TOTAL | H201: =H200/E200 -> 121.32 | I201: OK
B202: BDI % | H202: =1+$M$1 -> 1.2149
B203: TOTAL DO SERVIÇO - R$ | H203: =ROUND(H201*H202,2) -> 147.39
A205: 13 | B205: CODEVASF | E205: COMPOSIÇÃO DE PREÇO UNITÁRIO | I205: =H214 -> 0.65 | J205: =H216 -> 0.79
B206: OBRA: | C206: =$C$2 -> PAVIMENTAÇÃO ASFÁLTICA EM CBUQ - ITEM 2: MORRO DA CANELA, MORRO DO PAREDÃO, MORRO DO BAGUAÇÚ, MORRO DO RETIRO E AV. LÁZARO LONDE (MATUTINA / MG) - | G206: DATA: | H206: =$H$2 -> SETEMBRO / 2023
B207: SERVIÇO: | C207: =VLOOKUP(A205,ORÇAMENTO!$A$10:$I$30,3) -> TRANSPORTE COM CAMINHÃO BASCULANTE, EM VIA URBANA PAVIMENTADA | E207: SINAPI | F207: =VLOOKUP(A205,ORÇAMENTO!$A$10:$I$30,4) -> 95427 | G207: UNIDADE: | H207: =VLOOKUP(A205,ORÇAMENTO!$A$10:$I$30,5) -> M3XKM
B209: TIPO ITEM | C209: CODIGO ITEM | D209: DESCRIÇÃO ITEM | E209: UNIDADE ITEM | F209: COEFICIENTE | G209: PRECO UNITARIO | H209: CUSTO TOTAL
B210: COMPOSICAO | C210: 89883 | D210: CAMINHÃO BASCULANTE 18 M3, COM CAVALO MECÂNICO DE CAPACIDADE MÁXIMA DE TRAÇÃO COMBINADO DE 45000 KG, POTÊNCIA 330 CV, INCLUSIVE SEMIREBOQUE COM CAÇAMBA METÁLICA | E210: CHP | F210: 0,0019000 | G210: 314,64 | H210: =ROUNDDOWN(F210*G210,2) -> 0.59
B211: COMPOSICAO | C211: 89884 | D211: CAMINHÃO BASCULANTE 18 M3, COM CAVALO MECÂNICO DE CAPACIDADE MÁXIMA DE TRAÇÃO COMBINADO DE 45000 KG, POTÊNCIA 330 CV, INCLUSIVE SEMIREBOQUE COM CAÇAMBA METÁLICA | E211: CHI | F211: 0,0008000 | G211: 86,36 | H211: =ROUNDDOWN(F211*G211,2) -> 0.06
H212: =ROUNDDOWN(F212*G212,2) -> 0
B213: PRODUÇÃO DA EQUIPE | E213: 1 | F213: CUSTO | H213: =SUM(H210:H212) -> 0.65
B214: TOTAL | H214: =H213/E213 -> 0.65 | I214: OK
B215: BDI % | H215: =1+$M$1 -> 1.2149
B216: TOTAL DO SERVIÇO - R$ | H216: =ROUND(H214*H215,2) -> 0.79
A218: 14 | B218: CODEVASF | E218: COMPOSIÇÃO DE PREÇO UNITÁRIO | I218: =H227 -> 0.93 | J218: =H229 -> 1.13
B219: OBRA: | C219: =$C$2 -> PAVIMENTAÇÃO ASFÁLTICA EM CBUQ - ITEM 2: MORRO DA CANELA, MORRO DO PAREDÃO, MORRO DO BAGUAÇÚ, MORRO DO RETIRO E AV. LÁZARO LONDE (MATUTINA / MG) - | G219: DATA: | H219: =$H$2 -> SETEMBRO / 2023
B220: SERVIÇO: | C220: =VLOOKUP(A218,ORÇAMENTO!$A$10:$I$30,3) -> TRANSPORTE COM CAMINHÃO CARROCERIA 9T, EM VIA URBANA PAVIMENTADA | E220: SINAPI | F220: =VLOOKUP(A218,ORÇAMENTO!$A$10:$I$30,4) -> 100947 | G220: UNIDADE: | H220: =VLOOKUP(A218,ORÇAMENTO!$A$10:$I$30,5) -> TXKM
B222: TIPO ITEM | C222: CODIGO ITEM | D222: DESCRIÇÃO ITEM | E222: UNIDADE ITEM | F222: COEFICIENTE | G222: PRECO UNITARIO | H222: CUSTO TOTAL
B223: COMPOSICAO | C223: 5824 | D223: CAMINHÃO TOCO, PBT 16.000 KG, CARGA ÚTIL MÁX. 10.685 KG, DIST. ENTRE EIXOS 4,8 M, POTÊNCIA 189 CV, INCLUSIVE CARROCERIA FIXA ABERTA DE MADEIRA P/ TRANSPORTE GERAL DE CARGA SECA, DIMEN. APROX. 2,5 X 7,00 X 0,50 M | E223: CHP | F223: 0.0039 | G223: 183,71 | H223: =ROUNDDOWN(F223*G223,2) -> 0.71
B224: COMPOSICAO | C224: 5826 | D224: CAMINHÃO TOCO, PBT 16.000 KG, CARGA ÚTIL MÁX. 10.685 KG, DIST. ENTRE EIXOS 4,8 M, POTÊNCIA 189 CV, INCLUSIVE CARROCERIA FIXA ABERTA DE MADEIRA P/ TRANSPORTE GERAL DE CARGA SECA, DIMEN. APROX. 2,5 X 7,00 X 0,50 M | E224: CHI | F224: 0,0040000 | G224: 57,00 | H224: =ROUNDDOWN(F224*G224,2) -> 0.22
H225: =ROUNDDOWN(F225*G225,2) -> 0
B226: PRODUÇÃO DA EQUIPE | E226: 1 | F226: CUSTO | H226: =SUM(H223:H225) -> 0.93
B227: TOTAL | H227: =H226/E226 -> 0.93 | I227: OK
B228: BDI % | H228: =1+$M$1 -> 1.2149
... 123 more rows

Sheet BDI SERV
B1: DETALHAMENTO DO BDI - SERVIÇOS
B4: Item | C4: Descrição dos Serviços | D4: % | E4: %
D5: PV | E5: CD
B7: 1 | C7: ADMINISTRAÇÃO CENTRAL | E7: 4.01
B8: 1.1 | C8: ESCRITÓRIO CENTRAL
B9: 1.2 | C9: VIAGENS
B10: 1.3 | C10: OUTROS
B12: 2 | C12: IMPOSTOS E TAXAS | D12: =SUM(D13:D16) -> 5.65 | E12: =SUM(E13:E16) -> 7.06
B13: 2.1 | C13: ISS (*) | D13: 2 | E13: =ROUND(D13*1.2515,2) -> 2.5
B14: 2.2 | C14: PIS | D14: 0.65 | E14: =ROUND(D14*1.2515,2) -> 0.81
B15: 2.3 | C15: Cofins | D15: 3 | E15: =ROUND(D15*1.2515,2) -> 3.75
B16: 2.4 | C16: CONTRIBUIÇÃO PREVIDENCIÁRIA SOBRE A RENDA BRUTA | D16: 0 | E16: =ROUND(D16*1.2515,2) -> 0
B18: 3 | C18: TAXA DE RISCO | E18: =SUM(E19:E22) -> 0.96
B19: 3.1 | C19: SEGURO | E19: 0.2
B20: 3.2 | C20: RISCO | E20: 0.56
B21: 3.3 | C21: GARANTIA | E21: 0.2
B23: 4 | C23: DESPESAS FINANCEIRAS | E23: 1.11
B25: 5 | C25: LUCRO | E25: 8
C27: BDI - CALCULADO | E27: =ROUND((((1+(E7+E18)/100)*(1+E23/100)*(1+E25/100)/(1-D12/100)-1)*100),2) -> 21.49
A29: BDI = ((1+((AC+S+R+G)/100))x(1+DF/100)x(1+L/100)/(1-I/100)-1)*100
B31: BDI (CALCULADO): | D31: =ROUND((((1+((E7+E18)/100))*(1+E23/100)*(1+E25/100))/(1-D12/100)-1)*100,2) -> 21.49 | E31: %
A33: (*) ISS CONFORME LEI COMPLEMENTAR Nº 731/2002
A37: BDI EM CONFORMIDADE COM OS ACÓRDÃOS Nº 2369/2011 e ACÓRDÃO Nº 2.622/2013 - TCU - PLENÁRIO

Sheet BDI FORN
B1: DETALHAMENTO DO BDI - FORNECIMENTO (MATERIAL ASFÁLTICO)
B4: Item | C4: Descrição dos Serviços | D4: % | E4: %
D5: PV | E5: CD
B7: 1 | C7: ADMINISTRAÇÃO CENTRAL | E7: 3.72
B8: 1.1 | C8: ESCRITÓRIO CENTRAL
B9: 1.2 | C9: VIAGENS
B10: 1.3 | C10: OUTROS
B12: 2 | C12: IMPOSTOS E TAXAS | D12: =SUM(D13:D16) -> 3.65 | E12: =SUM(E13:E16) -> 4.56
B13: 2.1 | C13: ISS (*) | E13: =ROUND(D13*1.2515,2) -> 0
B14: 2.2 | C14: PIS | D14: 0.65 | E14: =ROUND(D14*1.2515,2) -> 0.81
B15: 2.3 | C15: Cofins | D15: 3 | E15: =ROUND(D15*1.2515,2) -> 3.75
B16: 2.4 | C16: CONTRIBUIÇÃO PREVIDENCIÁRIA SOBRE A RENDA BRUTA | D16: 0 | E16: =ROUND(D16*1.2515,2) -> 0
B18: 3 | C18: TAXA DE RISCO | E18: =SUM(E19:E22) -> 0.82
B19: 3.1 | C19: SEGURO | E19: 0.16
B20: 3.2 | C20: RISCO | E20: 0.5
B21: 3.3 | C21: GARANTIA | E21: 0.16
B23: 4 | C23: DESPESAS FINANCEIRAS | E23: 0.94
B25: 5 | C25: LUCRO | E25: 5
C27: BDI - CALCULADO | E27: =ROUND((((1+(E7+E18)/100)*(1+E23/100)*(1+E25/100)/(1-D12/100)-1)*100),2) -> 15
A29: BDI = ((1+((AC+S+R+G)/100))x(1+DF/100)x(1+L/100)/(1-I/100)-1)*100
B31: BDI (CALCULADO): | D31: =ROUND((((1+((E7+E18)/100))*(1+E23/100)*(1+E25/100))/(1-D12/100)-1)*100,2) -> 15 | E31: %
A37: BDI EM CONFORMIDADE COM OS ACÓRDÃOS Nº 2369/2011 e ACÓRDÃO Nº 2.622/2013 - TCU - PLENÁRIO

Sheet CRONOGRAMA
B1: CRONOGRAMA FÍSICO-FINANCEIRO
B2: OBRA: | C2: =ORÇAMENTO!C5 -> PAVIMENTAÇÃO ASFÁLTICA EM CBUQ - ITEM 2: MORRO DA CANELA, MORRO DO PAREDÃO, MORRO DO BAGUAÇÚ, MORRO DO RETIRO E AV. LÁZARO LONDE (MATUTINA / MG) - | F2: VALOR: | G2: =ORÇAMENTO!I39 -> 3999560
F3: PRAZO: | G3: 180 DIAS
B5: ITEM | C5: ETAPAS/DESCRIÇAO | D5: FISICO/ FINANCEIRO | E5: TOTAL ETAPAS | F5: MÊS 1 | G5: MÊS 2 | H5: MÊS 3 | I5: MÊS 4 | J5: MÊS 5 | K5: MÊS 6 | L5: MÊS 7 | M5: MÊS 8 | N5: TOTAL
A6: A | B6: =VLOOKUP(A6,ORÇAMENTO!$A$9:$I$39,2) -> 1 | C6: =VLOOKUP(A6,ORÇAMENTO!$A$9:$I$39,3) -> SERVIÇOS PRELIMINARES | D6: FISICO | E6: =ROUND(E7/$G$2,4) -> 0.0928 | F6: 0.1 | G6: 0.1 | H6: 0.15 | I6: 0.15 | J6: 0.15 | K6: 0.15 | L6: 0.1 | M6: 0.1 | N6: =SUM(F6:M6) -> 1
D7: FINANCEIRO | E7: =ORÇAMENTO!I9 -> 371055.42 | F7: =ROUND($E$7*F6,2) -> 37105.54 | G7: =ROUND($E$7*G6,2) -> 37105.54 | H7: =ROUND($E$7*H6,2) -> 55658.31 | I7: =ROUND($E$7*I6,2) -> 55658.31 | J7: =ROUND($E$7*J6,2) -> 55658.31 | K7: =ROUND($E$7*K6,2) -> 55658.31 | L7: 37105.54 | M7: 37105.54 | N7: =SUM(F7:M7) -> 371055.4
A8: B | B8: =VLOOKUP(A8,ORÇAMENTO!$A$9:$I$39,2) -> 2 | C8: =VLOOKUP(A8,ORÇAMENTO!$A$9:$I$39,3) -> TERRAPLANAGEM E PAVIMENTAÇÃO | D8: FISICO | E8: =ROUND(E9/$G$2,4) -> 0.1135 | F8: 0.1 | G8: 0.1 | H8: 0.15 | I8: 0.15 | J8: 0.15 | K8: 0.15 | L8: 0.1 | M8: 0.1 | N8: =SUM(F8:M8) -> 1
D9: FINANCEIRO | E9: =ORÇAMENTO!I15 -> 454029.7 | F9: =ROUND($E$9*F8,2) -> 45402.97 | G9: =ROUND($E$9*G8,2) -> 45402.97 | H9: =ROUND($E$9*H8,2) -> 68104.46 | I9: =ROUND($E$9*I8,2) -> 68104.46 | J9: =ROUND($E$9*J8,2) -> 68104.46 | K9: =ROUND($E$9*K8,2) -> 68104.46 | L9: 45402.97 | M9: 45402.97 | N9: =SUM(F9:M9) -> 454029.72
A10: C | B10: =VLOOKUP(A10,ORÇAMENTO!$A$9:$I$39,2) -> 3 | C10: =VLOOKUP(A10,ORÇAMENTO!$A$9:$I$39,3) -> TRANSPORTE DE MATERIAIS | D10: FISICO | E10: =ROUND(E11/$G$2,4) -> 0.0239 | F10: 0.1 | G10: 0.1 | H10: 0.15 | I10: 0.15 | J10: 0.15 | K10: 0.15 | L10: 0.1 | M10: 0.1 | N10: =SUM(F10:M10) -> 1
D11: FINANCEIRO | E11: =ORÇAMENTO!I23 -> 95596 | F11: =ROUND($E$11*F10,2) -> 9559.6 | G11: =ROUND($E$11*G10,2) -> 9559.6 | H11: =ROUND($E$11*H10,2) -> 14339.4 | I11: =ROUND($E$11*I10,2) -> 14339.4 | J11: =ROUND($E$11*J10,2) -> 14339.4 | K11: =ROUND($E$11*K10,2) -> 14339.4 | L11: 9559.6 | M11: 9559.6 | N11: =SUM(F11:M11)-0.04 -> 95595.96
A12: D | B12: =VLOOKUP(A12,ORÇAMENTO!$A$9:$I$39,2) -> 4 | C12: =VLOOKUP(A12,ORÇAMENTO!$A$9:$I$39,3) -> TRANSPORTE DE MATERIAL ASFÁLTICO (BDI DIFERENCIADO) | D12: FISICO | E12: =ROUND(E13/$G$2,4) -> 0.0689 | F12: 0.1 | G12: 0.1 | H12: 0.15 | I12: 0.15 | J12: 0.15 | K12: 0.15 | L12: 0.1 | M12: 0.1 | N12: =SUM(F12:M12) -> 1
D13: FINANCEIRO | E13: =ORÇAMENTO!I26 -> 275730 | F13: =ROUND($E$13*F12,2) -> 27573 | G13: =ROUND($E$13*G12,2) -> 27573 | H13: =ROUND($E$13*H12,2) -> 41359.5 | I13: =ROUND($E$13*I12,2) -> 41359.5 | J13: =ROUND($E$13*J12,2) -> 41359.5 | K13: =ROUND($E$13*K12,2) -> 41359.5 | L13: 27573 | M13: 27573 | N13: =SUM(F13:M13)-0.02 -> 275729.98
A14: E | B14: =VLOOKUP(A14,ORÇAMENTO!$A$9:$I$39,2) -> 5 | C14: =VLOOKUP(A14,ORÇAMENTO!$A$9:$I$39,3) -> DRENAGEM E OBRAS COMPLEMENTARES | D14: FISICO | E14: =ROUND(E15/$G$2,4) -> 0.1378 | F14: 0 | G14: 0 | H14: 0.1 | I14: 0.15 | J14: 0.2 | K14: 0.2 | L14: 0.2 | M14: 0.15 | N14: =SUM(F14:M14) -> 1
D15: FINANCEIRO | E15: =ORÇAMENTO!I29 -> 551240.94 | F15: =ROUND($E$15*F14,2) -> 0 | G15: =ROUND($E$15*G14,2) -> 0 | H15: =ROUND($E$15*H14,2) -> 55124.09 | I15: =ROUND($E$15*I14,2) -> 82686.14 | J15: =ROUND($E$15*J14,2) -> 110248.19 | K15: =ROUND($E$15*K14,2) -> 110248.19 | L15: 110248.19 | M15: 82686.14 | N15: =SUM(F15:M15)-0.02 -> 551240.92
A16: F | B16: =VLOOKUP(A16,ORÇAMENTO!$A$9:$I$39,2) -> 6 | C16: =VLOOKUP(A16,ORÇAMENTO!$A$9:$I$39,3) -> FORNECIMENTOS - MATERIAL ASFÁLTICO (BDI DIFERENCIADO) | D16: FISICO | E16: =ROUND(E17/$G$2,4) -> 0.563 | F16: 0.1 | G16: 0.1 | H16: 0.15 | I16: 0.15 | J16: 0.15 | K16: 0.15 | L16: 0.1 | M16: 0.1 | N16: =SUM(F16:M16) -> 1
D17: FINANCEIRO | E17: =ORÇAMENTO!I35 -> 2251907.94 | F17: =ROUND($E$17*F16,2) -> 225190.79 | G17: =ROUND($E$17*G16,2) -> 225190.79 | H17: =ROUND($E$17*H16,2) -> 337786.19 | I17: =ROUND($E$17*I16,2) -> 337786.19 | J17: =ROUND($E$17*J16,2) -> 337786.19 | K17: =ROUND($E$17*K16,2) -> 337786.19 | L17: 225190.79 | M17: 225190.79 | N17: =SUM(F17:M17)-0.02 -> 2251907.9
B18: TOTAL | D18: FISICO | E18: =SUM(F18:M18) -> 0.999999995 | F18: =F19/$E$19 -> 0.08621745892 | G18: =G19/$E$19 -> 0.08621745892 | H18: =H19/$E$19 -> 0.1431087295 | I18: =I19/$E$19 -> 0.15 | J18: =J19/$E$19 -> 0.1568912705 | K18: 0.1568912705 | L18: 0.1137825386 | M18: 0.106891268 | N18: =SUM(F18:M18) -> 0.999999995
D19: FINANCEIRO | E19: =E11+E9+E7+E13+E17+E15 -> 3999560 | F19: 344831.9 | G19: 344831.9 | H19: 572371.95 | I19: 599934 | J19: =J11+J9+J7+J13+J17+J15 -> 627496.05 | K19: 627496.05 | L19: 455080.09 | M19: =M11+M9+M7+M13+M17+M15 -> 427518.04 | N19: =SUM(F19:M19)+0.02 -> 3999560
B21: OBSERVAÇÕES:
